[Event "*** Titled Tuesday Blitz"]
[Site "Chess.com"]
[Date "2021.04.27"]
[Round "9"]
[White "Sam_ChessMood"]
[Black "attack2mateU"]
[Result "1-0"]
[WhiteElo "2917"]
[BlackElo "2762"]
[TimeControl "180+1"]
[EndTime "11:42:44 PDT"]
[Termination "Sam_ChessMood won by resignation"]

1. e4 {[%clk 0:03:00.9]} 1... c5 {[%clk 0:02:59.6]} 2. Nf3 {[%clk 0:03:00.8]}
2... d6 {[%clk 0:02:59.5]} 3. d4 {[%clk 0:02:58.6]} 3... cxd4 {[%clk 0:03:00.4]}
4. Nxd4 {[%clk 0:02:59.2]} 4... Nf6 {[%clk 0:03:00.7]} 5. Nc3 {[%clk 0:02:59.6]}
5... a6 {[%clk 0:03:01.1]} 6. Be3 {[%clk 0:02:58.8]} 6... e5 {[%clk 0:03:00.8]}
7. Nb3 {[%clk 0:02:58.8]} 7... Be7 {[%clk 0:02:59.8]} 8. Be2 {[%clk 0:02:57]}
8... Be6 {[%clk 0:02:54.6]} 9. O-O {[%clk 0:02:56.2]} 9... O-O {[%clk
0:02:54.3]} 10. Qd3 {[%clk 0:02:56.3]} 10... Nbd7 {[%clk 0:02:53.3]} 11. a4
{[%clk 0:02:55.6]} 11... Qc7 {[%clk 0:02:45.6]} 12. a5 {[%clk 0:02:52]} 12... b5
{[%clk 0:02:37.4]} 13. axb6 {[%clk 0:02:49.3]} 13... Nxb6 {[%clk 0:02:38]} 14.
Na5 {[%clk 0:02:38]} 14... Rfc8 {[%clk 0:02:17.5]} 15. Rfd1 {[%clk 0:02:34.8]}
15... Nfd7 {[%clk 0:02:08.6]} 16. Nd5 {[%clk 0:02:14.7]} 16... Bxd5 {[%clk
0:02:06.3]} 17. exd5 {[%clk 0:02:14.8]} 17... Qxc2 {[%clk 0:02:01.5]} 18. Nc6
{[%clk 0:02:10.7]} 18... Qxd3 {[%clk 0:02:00.8]} 19. Bxd3 {[%clk 0:02:09.5]}
19... Nxd5 {[%clk 0:01:38.3]} 20. Be4 {[%clk 0:02:09.4]} 20... Rxc6 {[%clk
0:01:38]} 21. Bxd5 {[%clk 0:02:09.2]} 21... Rac8 {[%clk 0:01:38.2]} 22. Bxc6
{[%clk 0:02:08.8]} 22... Rxc6 {[%clk 0:01:39.1]} 23. Rdc1 {[%clk 0:02:06.8]}
23... Rxc1+ {[%clk 0:01:33.9]} 24. Rxc1 {[%clk 0:02:07.7]} 24... Nf6 {[%clk
0:01:11.1]} 25. Rc8+ {[%clk 0:02:06.7]} 25... Bf8 {[%clk 0:01:11.7]} 26. Ra8
{[%clk 0:02:01.6]} 26... Nd5 {[%clk 0:01:09.2]} 27. Rxa6 {[%clk 0:01:56.5]}
27... f5 {[%clk 0:01:09]} 28. Ra7 {[%clk 0:01:47.5]} 28... f4 {[%clk 0:00:55.1]}
29. Bd2 {[%clk 0:01:46]} 29... Be7 {[%clk 0:00:55.3]} 30. f3 {[%clk 0:01:29.1]}
30... Kf7 {[%clk 0:00:55.5]} 31. Kf1 {[%clk 0:01:26]} 31... Ke6 {[%clk
0:00:55.7]} 32. Ke2 {[%clk 0:01:24.6]} 32... g5 {[%clk 0:00:49.8]} 33. b4 {[%clk
0:01:23.1]} 33... Nb6 {[%clk 0:00:49]} 34. Kd3 {[%clk 0:01:20.1]} 34... d5
{[%clk 0:00:44.8]} 35. Ra6 {[%clk 0:01:15.2]} 35... Bd8 {[%clk 0:00:45.4]} 36.
b5 {[%clk 0:01:15.8]} 36... Kd6 {[%clk 0:00:29.9]} 37. Bb4+ {[%clk 0:01:10.5]}
37... Kc7 {[%clk 0:00:30.2]} 38. Ra7+ {[%clk 0:01:02.4]} 38... Kc8 {[%clk
0:00:30.4]} 39. Ba5 {[%clk 0:00:51.8]} 39... Nc4 {[%clk 0:00:18.9]} 40. Ra8+
{[%clk 0:00:47.1]} 40... Kb7 {[%clk 0:00:18.8]} 41. Rxd8 {[%clk 0:00:47.4]}
41... Nxa5 {[%clk 0:00:19.5]} 42. Rxd5 {[%clk 0:00:47.8]} 1-0

[Event "*** Titled Tuesday Blitz"]
[Site "Chess.com"]
[Date "2021.04.27"]
[Round "9"]
[White "monalize"]
[Black "Kozok"]
[Result "1-0"]
[WhiteElo "2410"]
[BlackElo "2519"]
[TimeControl "180+1"]
[EndTime "11:42:46 PDT"]
[Termination "monalize won by resignation"]

1. e4 {[%clk 0:02:57.8]} 1... c5 {[%clk 0:02:58.3]} 2. Nf3 {[%clk 0:02:57.1]}
2... e6 {[%clk 0:02:58.6]} 3. b3 {[%clk 0:02:56.7]} 3... d5 {[%clk 0:02:57.2]}
4. exd5 {[%clk 0:02:55.8]} 4... exd5 {[%clk 0:02:58.1]} 5. d4 {[%clk 0:02:56.2]}
5... Nc6 {[%clk 0:02:55.6]} 6. Bb2 {[%clk 0:02:55.6]} 6... Nf6 {[%clk
0:02:44.9]} 7. Be2 {[%clk 0:02:51.5]} 7... cxd4 {[%clk 0:02:32.2]} 8. O-O {[%clk
0:02:50.9]} 8... Bd6 {[%clk 0:02:31.8]} 9. Nxd4 {[%clk 0:02:50.2]} 9... O-O
{[%clk 0:02:31.6]} 10. Nd2 {[%clk 0:02:46.5]} 10... Ne5 {[%clk 0:02:26.6]} 11.
N2f3 {[%clk 0:02:44.8]} 11... Nfg4 {[%clk 0:02:22.5]} 12. h3 {[%clk 0:02:43.8]}
12... Nxf3+ {[%clk 0:02:22.7]} 13. Nxf3 {[%clk 0:02:42.7]} 13... Nf6 {[%clk
0:02:15.8]} 14. Qd4 {[%clk 0:02:39.1]} 14... Bf5 {[%clk 0:02:12.7]} 15. Bd3
{[%clk 0:02:35]} 15... Be4 {[%clk 0:02:03.2]} 16. Ng5 {[%clk 0:02:22.2]} 16...
Re8 {[%clk 0:01:58]} 17. Nxe4 {[%clk 0:02:19.9]} 17... dxe4 {[%clk 0:01:56.5]}
18. Bc4 {[%clk 0:02:17.4]} 18... Qc7 {[%clk 0:01:49.8]} 19. Qe3 {[%clk
0:02:06.8]} 19... Bf4 {[%clk 0:01:41.6]} 20. Qe2 {[%clk 0:02:05.8]} 20... Be5
{[%clk 0:01:36.2]} 21. c3 {[%clk 0:01:54.8]} 21... Rad8 {[%clk 0:01:24.9]} 22.
Rad1 {[%clk 0:01:53.5]} 22... a6 {[%clk 0:01:24.5]} 23. a4 {[%clk 0:01:52.8]}
23... Bf4 {[%clk 0:01:20.9]} 24. g3 {[%clk 0:01:46.9]} 24... Be5 {[%clk
0:01:11.5]} 25. Qe3 {[%clk 0:01:40]} 25... h6 {[%clk 0:01:07]} 26. Ba3 {[%clk
0:01:22.6]} 26... g5 {[%clk 0:01:02.5]} 27. Kg2 {[%clk 0:01:14.1]} 27... Kg7
{[%clk 0:01:02]} 28. Bc5 {[%clk 0:01:09.4]} 28... Qc6 {[%clk 0:00:58]} 29. Bb6
{[%clk 0:00:51]} 29... Rxd1 {[%clk 0:00:55.8]} 30. Rxd1 {[%clk 0:00:50.4]} 30...
Bxc3 {[%clk 0:00:55.9]} 31. Qxc3 {[%clk 0:00:45]} 31... Qxb6 {[%clk 0:00:55.8]}
32. Rd7 {[%clk 0:00:44.1]} 32... Rf8 {[%clk 0:00:41.5]} 33. Qe5 {[%clk
0:00:43.4]} 33... e3 {[%clk 0:00:38.7]} 34. Rd6 {[%clk 0:00:43.1]} 34... Qd8
{[%clk 0:00:21.7]} 35. Rxd8 {[%clk 0:00:42.1]} 35... Rxd8 {[%clk 0:00:22.6]} 36.
Qxe3 {[%clk 0:00:41.8]} 36... Re8 {[%clk 0:00:20.8]} 37. Qd4 {[%clk 0:00:41.4]}
1-0

[Event "*** Titled Tuesday Blitz"]
[Site "Chess.com"]
[Date "2021.04.27"]
[Round "9"]
[White "Darius321"]
[Black "gonzaga23"]
[Result "0-1"]
[WhiteElo "2289"]
[BlackElo "2462"]
[TimeControl "180+1"]
[EndTime "11:42:47 PDT"]
[Termination "gonzaga23 won by resignation"]

1. e4 {[%clk 0:03:00.9]} 1... c6 {[%clk 0:02:59.6]} 2. d4 {[%clk 0:03:00.3]}
2... d5 {[%clk 0:03:00.5]} 3. exd5 {[%clk 0:03:01.2]} 3... cxd5 {[%clk
0:03:01.3]} 4. c4 {[%clk 0:03:01.7]} 4... Nf6 {[%clk 0:03:00.8]} 5. Nc3 {[%clk
0:03:02.3]} 5... Nc6 {[%clk 0:03:00]} 6. Bg5 {[%clk 0:03:02.2]} 6... e6 {[%clk
0:02:59.7]} 7. Nf3 {[%clk 0:03:00.9]} 7... Be7 {[%clk 0:02:56.7]} 8. cxd5 {[%clk
0:02:57.6]} 8... Nxd5 {[%clk 0:02:56.5]} 9. Bxe7 {[%clk 0:02:57.1]} 9... Ncxe7
{[%clk 0:02:57.4]} 10. Ne5 {[%clk 0:02:56.1]} 10... O-O {[%clk 0:02:57]} 11. Bd3
{[%clk 0:02:55.6]} 11... Ng6 {[%clk 0:02:48.4]} 12. O-O {[%clk 0:02:46.6]} 12...
Qh4 {[%clk 0:02:42.4]} 13. Nxd5 {[%clk 0:02:39.5]} 13... exd5 {[%clk 0:02:40.4]}
14. Nxg6 {[%clk 0:02:31.1]} 14... hxg6 {[%clk 0:02:40.3]} 15. Be2 {[%clk
0:02:26.1]} 15... Bf5 {[%clk 0:02:34]} 16. Bf3 {[%clk 0:02:15.3]} 16... Be4
{[%clk 0:02:34]} 17. Re1 {[%clk 0:02:14.5]} 17... Bxf3 {[%clk 0:02:24.9]} 18.
Qxf3 {[%clk 0:02:14.4]} 18... Qxd4 {[%clk 0:02:25.4]} 19. Rad1 {[%clk
0:02:05.3]} 19... Rae8 {[%clk 0:02:15.1]} 20. Rxe8 {[%clk 0:01:43.2]} 20... Rxe8
{[%clk 0:02:16]} 21. h3 {[%clk 0:01:35.3]} 21... Qxb2 {[%clk 0:02:06.2]} 22.
Qxd5 {[%clk 0:01:34.2]} 22... Qb6 {[%clk 0:01:16.8]} 23. Rd2 {[%clk 0:01:22.7]}
23... Qc7 {[%clk 0:01:04.7]} 24. g3 {[%clk 0:01:20.4]} 24... a5 {[%clk
0:00:40.2]} 25. Rb2 {[%clk 0:01:15.8]} 25... Qc1+ {[%clk 0:00:35.4]} 26. Kg2
{[%clk 0:01:10.3]} 26... Qxb2 {[%clk 0:00:35.2]} 27. Qd7 {[%clk 0:01:09.8]}
27... Qe5 {[%clk 0:00:23.3]} 28. Kh2 {[%clk 0:01:08.4]} 28... Qe7 {[%clk
0:00:21.4]} 29. Qb5 {[%clk 0:01:07.5]} 29... Qe5 {[%clk 0:00:18.7]} 30. Qxb7
{[%clk 0:01:05.7]} 30... Qe2 {[%clk 0:00:17]} 31. Qb6 {[%clk 0:01:03.6]} 31...
Rc8 {[%clk 0:00:15.7]} 32. Kg2 {[%clk 0:00:57.9]} 32... Rc2 {[%clk 0:00:14.6]}
33. Qd8+ {[%clk 0:00:56.8]} 33... Kh7 {[%clk 0:00:15.3]} 34. Qh4+ {[%clk
0:00:56.6]} 34... Qh5 {[%clk 0:00:16]} 35. Qf4 {[%clk 0:00:53.8]} 35... Qd5+
{[%clk 0:00:15.3]} 36. Kg1 {[%clk 0:00:52]} 36... Rxa2 {[%clk 0:00:14.7]} 37.
Qh4+ {[%clk 0:00:49.8]} 37... Kg8 {[%clk 0:00:15.3]} 38. Qd8+ {[%clk 0:00:49.3]}
38... Qxd8 {[%clk 0:00:15.3]} 0-1

[Event "*** Titled Tuesday Blitz"]
[Site "Chess.com"]
[Date "2021.04.27"]
[Round "9"]
[White "chessdiamant"]
[Black "Shuvalov"]
[Result "0-1"]
[WhiteElo "2287"]
[BlackElo "2435"]
[TimeControl "180+1"]
[EndTime "11:42:51 PDT"]
[Termination "Shuvalov won by resignation"]

1. e4 {[%clk 0:03:00.2]} 1... e6 {[%clk 0:02:59.5]} 2. d4 {[%clk 0:02:59.8]}
2... d5 {[%clk 0:02:59.8]} 3. Nd2 {[%clk 0:02:58.6]} 3... c5 {[%clk 0:02:59.1]}
4. exd5 {[%clk 0:02:54.8]} 4... exd5 {[%clk 0:02:59.1]} 5. Ngf3 {[%clk
0:02:54.6]} 5... Nc6 {[%clk 0:02:58.3]} 6. Bd3 {[%clk 0:02:53.4]} 6... c4 {[%clk
0:02:56.6]} 7. Be2 {[%clk 0:02:52.8]} 7... Nf6 {[%clk 0:02:55.1]} 8. O-O {[%clk
0:02:52.2]} 8... Be7 {[%clk 0:02:54.7]} 9. b3 {[%clk 0:02:52]} 9... cxb3 {[%clk
0:02:48]} 10. axb3 {[%clk 0:02:52.9]} 10... O-O {[%clk 0:02:48]} 11. Bb2 {[%clk
0:02:53]} 11... Bf5 {[%clk 0:02:45.5]} 12. c4 {[%clk 0:02:52.6]} 12... Re8
{[%clk 0:02:42.3]} 13. Re1 {[%clk 0:02:38.6]} 13... Nb4 {[%clk 0:02:32.6]} 14.
Nh4 {[%clk 0:02:36.4]} 14... Bc2 {[%clk 0:02:27.8]} 15. Qc1 {[%clk 0:02:32.7]}
15... Ne4 {[%clk 0:02:14.5]} 16. Nhf3 {[%clk 0:02:28.7]} 16... Bd3 {[%clk
0:02:06.1]} 17. c5 {[%clk 0:01:48.7]} 17... Bf6 {[%clk 0:01:59]} 18. Ra4 {[%clk
0:01:32.8]} 18... Bxe2 {[%clk 0:01:52.9]} 19. Rxe2 {[%clk 0:01:28.1]} 19... Nd3
{[%clk 0:01:51.7]} 20. Qc2 {[%clk 0:01:26]} 20... Nxb2 {[%clk 0:01:49.9]} 21.
Qxb2 {[%clk 0:01:24.9]} 21... Nxc5 {[%clk 0:01:44.7]} 22. Rxe8+ {[%clk
0:01:17.6]} 22... Qxe8 {[%clk 0:01:45.6]} 23. Qa3 {[%clk 0:01:09.8]} 23... Nxa4
{[%clk 0:01:44]} 24. bxa4 {[%clk 0:01:06.3]} 24... Rc8 {[%clk 0:01:42.3]} 25. g3
{[%clk 0:01:04.4]} 25... Qe2 {[%clk 0:01:38.2]} 26. Qb4 {[%clk 0:01:01.6]} 26...
b6 {[%clk 0:01:31.7]} 27. Qd6 {[%clk 0:01:01.2]} 27... Qe6 {[%clk 0:01:16.7]}
28. Qb4 {[%clk 0:00:57.2]} 28... g6 {[%clk 0:01:13.2]} 29. Kg2 {[%clk
0:00:56.6]} 29... h5 {[%clk 0:01:12.6]} 30. h4 {[%clk 0:00:56.2]} 30... Kg7
{[%clk 0:01:12.7]} 31. Qb5 {[%clk 0:00:50.2]} 31... Qc6 {[%clk 0:01:12.2]} 32.
Qa6 {[%clk 0:00:47.3]} 32... Rc7 {[%clk 0:01:12.1]} 33. a5 {[%clk 0:00:39.3]}
33... b5 {[%clk 0:01:10.3]} 34. Qxc6 {[%clk 0:00:33.9]} 34... Rxc6 {[%clk
0:01:11.2]} 35. Nb3 {[%clk 0:00:34.8]} 35... Rc4 {[%clk 0:01:10.7]} 36. Nc5
{[%clk 0:00:28.9]} 36... Bxd4 {[%clk 0:01:08.2]} 37. Nxd4 {[%clk 0:00:28.2]}
37... Rxd4 {[%clk 0:01:09.1]} 38. Nd7 {[%clk 0:00:25.8]} 38... b4 {[%clk
0:01:06.7]} 39. Nc5 {[%clk 0:00:18]} 39... Rc4 {[%clk 0:01:06.3]} 40. Nb3 {[%clk
0:00:16.9]} 40... Rc3 {[%clk 0:01:06.4]} 41. Nd4 {[%clk 0:00:15.9]} 41... b3
{[%clk 0:01:06.4]} 42. Nb5 {[%clk 0:00:16.8]} 42... Rc5 {[%clk 0:01:05.1]} 43.
Nxa7 {[%clk 0:00:16.4]} 43... Rxa5 {[%clk 0:01:05.3]} 44. Nc6 {[%clk 0:00:16.2]}
44... Rc5 {[%clk 0:01:04.4]} 45. Na5 {[%clk 0:00:17.1]} 45... b2 {[%clk
0:01:02]} 0-1

[Event "*** Titled Tuesday Blitz"]
[Site "Chess.com"]
[Date "2021.04.27"]
[Round "9"]
[White "chessdjw"]
[Black "Susal_De_Silva"]
[Result "0-1"]
[WhiteElo "2728"]
[BlackElo "2643"]
[TimeControl "180+1"]
[EndTime "11:42:56 PDT"]
[Termination "Susal_De_Silva won by resignation"]

1. e4 {[%clk 0:03:00.9]} 1... e5 {[%clk 0:02:59.3]} 2. Nf3 {[%clk 0:03:01.4]}
2... Nc6 {[%clk 0:02:59.6]} 3. Bc4 {[%clk 0:03:02]} 3... Nf6 {[%clk 0:02:59.3]}
4. d3 {[%clk 0:03:02.1]} 4... Bc5 {[%clk 0:02:58.5]} 5. c3 {[%clk 0:03:02.3]}
5... O-O {[%clk 0:02:59]} 6. O-O {[%clk 0:03:01.7]} 6... d5 {[%clk 0:02:59.4]}
7. exd5 {[%clk 0:03:00.8]} 7... Nxd5 {[%clk 0:03:00.3]} 8. Re1 {[%clk
0:02:53.5]} 8... Bg4 {[%clk 0:02:57.2]} 9. h3 {[%clk 0:02:53.3]} 9... Bh5 {[%clk
0:02:56.7]} 10. Nbd2 {[%clk 0:02:50.5]} 10... Nb6 {[%clk 0:02:57.1]} 11. Bb3
{[%clk 0:02:40.3]} 11... Qxd3 {[%clk 0:02:54.3]} 12. Nxe5 {[%clk 0:02:39.8]}
12... Qf5 {[%clk 0:02:53.6]} 13. Nef3 {[%clk 0:02:36.8]} 13... Rad8 {[%clk
0:02:46.4]} 14. Qe2 {[%clk 0:02:36.6]} 14... h6 {[%clk 0:02:16]} 15. g4 {[%clk
0:02:23.3]} 15... Bxg4 {[%clk 0:02:01.3]} 16. hxg4 {[%clk 0:02:24.2]} 16...
Qxg4+ {[%clk 0:02:01.9]} 17. Kh1 {[%clk 0:02:24.9]} 17... Qh3+ {[%clk
0:01:28.5]} 18. Nh2 {[%clk 0:02:22.5]} 18... Rde8 {[%clk 0:01:09.5]} 19. Qxe8
{[%clk 0:02:21.1]} 19... Rxe8 {[%clk 0:01:09.8]} 20. Rxe8+ {[%clk 0:02:21.7]}
20... Kh7 {[%clk 0:01:08.6]} 21. Ne4 {[%clk 0:02:14.4]} 21... Qd7 {[%clk
0:00:54]} 22. Bc2 {[%clk 0:01:50.4]} 22... f5 {[%clk 0:00:48.8]} 23. Nxc5 {[%clk
0:01:04.2]} 23... Qxe8 {[%clk 0:00:46.9]} 24. Bxf5+ {[%clk 0:01:04.2]} 24... g6
{[%clk 0:00:47]} 25. Be4 {[%clk 0:01:04]} 25... Nd7 {[%clk 0:00:40.5]} 26. Bxc6
{[%clk 0:00:57.4]} 26... Qe1+ {[%clk 0:00:38.2]} 27. Kg2 {[%clk 0:00:56.1]}
27... Nxc5 {[%clk 0:00:36.2]} 28. Bd5 {[%clk 0:00:30]} 28... Nd3 {[%clk
0:00:30.6]} 29. Nf3 {[%clk 0:00:29.9]} 29... Qxf2+ {[%clk 0:00:29.8]} 30. Kh3
{[%clk 0:00:29.8]} 30... Qf1+ {[%clk 0:00:27]} 31. Kg3 {[%clk 0:00:23.5]} 31...
Nxc1 {[%clk 0:00:27.4]} 32. Be4 {[%clk 0:00:19.8]} 32... Ne2+ {[%clk 0:00:27.2]}
33. Kh4 {[%clk 0:00:18.8]} 33... Qxa1 {[%clk 0:00:27.6]} 34. Ne5 {[%clk
0:00:19.3]} 34... Qe1+ {[%clk 0:00:26.6]} 0-1

[Event "*** Titled Tuesday Blitz"]
[Site "Chess.com"]
[Date "2021.04.27"]
[Round "9"]
[White "salomez"]
[Black "ChronicUnhappiness"]
[Result "1-0"]
[WhiteElo "2147"]
[BlackElo "2308"]
[TimeControl "180+1"]
[EndTime "11:42:56 PDT"]
[Termination "salomez won on time"]

1. e4 {[%clk 0:03:00.9]} 1... Nf6 {[%clk 0:03:00.9]} 2. Nc3 {[%clk 0:02:58.3]}
2... d6 {[%clk 0:03:00.6]} 3. d4 {[%clk 0:02:58.1]} 3... g6 {[%clk 0:03:01.5]}
4. Bc4 {[%clk 0:02:50.9]} 4... Bg7 {[%clk 0:03:00.8]} 5. Qe2 {[%clk 0:02:50.7]}
5... c6 {[%clk 0:03:00.2]} 6. e5 {[%clk 0:02:49.4]} 6... dxe5 {[%clk 0:02:57.9]}
7. dxe5 {[%clk 0:02:50.3]} 7... Nd5 {[%clk 0:02:57.6]} 8. Bd2 {[%clk 0:02:50.4]}
8... O-O {[%clk 0:02:52.9]} 9. O-O-O {[%clk 0:02:49.8]} 9... Be6 {[%clk
0:02:07.5]} 10. f4 {[%clk 0:02:44.1]} 10... b5 {[%clk 0:02:02.7]} 11. Bb3 {[%clk
0:02:39.5]} 11... a5 {[%clk 0:01:53.1]} 12. Nf3 {[%clk 0:02:36.5]} 12... a4
{[%clk 0:01:47.4]} 13. Bxd5 {[%clk 0:02:36.5]} 13... Bxd5 {[%clk 0:01:40.3]} 14.
Nxd5 {[%clk 0:02:36]} 14... Qxd5 {[%clk 0:01:39.8]} 15. Kb1 {[%clk 0:02:36.9]}
15... c5 {[%clk 0:01:08.9]} 16. f5 {[%clk 0:02:26]} 16... Nc6 {[%clk 0:01:01.2]}
17. Bh6 {[%clk 0:01:59.5]} 17... Nd4 {[%clk 0:00:59.9]} 18. Nxd4 {[%clk
0:01:48.1]} 18... cxd4 {[%clk 0:00:43.7]} 19. Bxg7 {[%clk 0:01:46.9]} 19... Kxg7
{[%clk 0:00:43.5]} 20. c3 {[%clk 0:01:30]} 20... gxf5 {[%clk 0:00:23.5]} 21.
Rxd4 {[%clk 0:01:27.1]} 21... Qe6 {[%clk 0:00:23.2]} 22. g4 {[%clk 0:01:25.4]}
22... fxg4 {[%clk 0:00:21.2]} 23. Rxg4+ {[%clk 0:01:24.6]} 23... Kh8 {[%clk
0:00:21.2]} 24. Rh4 {[%clk 0:01:01.8]} 24... Qg6+ {[%clk 0:00:12.8]} 25. Ka1
{[%clk 0:01:00.5]} 25... Rg8 {[%clk 0:00:13.1]} 26. a3 {[%clk 0:00:58.3]} 26...
Rad8 {[%clk 0:00:10.7]} 27. Qxb5 {[%clk 0:00:56.1]} 27... Rd2 {[%clk 0:00:09.2]}
28. Rb4 {[%clk 0:00:43.8]} 28... Qg2 {[%clk 0:00:03.5]} 29. Qf1 {[%clk
0:00:33.8]} 29... Qxf1+ {[%clk 0:00:01.9]} 30. Rxf1 {[%clk 0:00:33.5]} 30...
Rxh2 {[%clk 0:00:02.8]} 31. Rxa4 {[%clk 0:00:30.3]} 1-0

[Event "*** Titled Tuesday Blitz"]
[Site "Chess.com"]
[Date "2021.04.27"]
[Round "9"]
[White "grandcoach"]
[Black "Vladyslav_Puchka"]
[Result "1-0"]
[WhiteElo "2241"]
[BlackElo "2110"]
[TimeControl "180+1"]
[EndTime "11:42:59 PDT"]
[Termination "grandcoach won by resignation"]

1. e4 {[%clk 0:02:59.5]} 1... d5 {[%clk 0:02:57.7]} 2. exd5 {[%clk 0:02:57.5]}
2... Qxd5 {[%clk 0:02:58.6]} 3. Nc3 {[%clk 0:02:57.9]} 3... Qd8 {[%clk
0:02:58.9]} 4. d4 {[%clk 0:02:58.2]} 4... Nf6 {[%clk 0:02:59.1]} 5. Bc4 {[%clk
0:02:56.1]} 5... a6 {[%clk 0:02:58.8]} 6. Nge2 {[%clk 0:02:51.7]} 6... e6 {[%clk
0:02:54.8]} 7. O-O {[%clk 0:02:44.6]} 7... b5 {[%clk 0:02:55]} 8. Bd3 {[%clk
0:02:41.5]} 8... Bb7 {[%clk 0:02:53.5]} 9. a4 {[%clk 0:02:34]} 9... b4 {[%clk
0:02:51.9]} 10. Nb1 {[%clk 0:02:32]} 10... c5 {[%clk 0:02:51]} 11. Nd2 {[%clk
0:02:03.6]} 11... cxd4 {[%clk 0:02:14.9]} 12. Nb3 {[%clk 0:02:02.7]} 12... Nc6
{[%clk 0:02:10.8]} 13. Nexd4 {[%clk 0:02:01.9]} 13... Nxd4 {[%clk 0:02:10.1]}
14. Nxd4 {[%clk 0:02:02.8]} 14... Qd5 {[%clk 0:02:00.2]} 15. Nf3 {[%clk
0:02:00.4]} 15... Bc5 {[%clk 0:01:52.7]} 16. Qe2 {[%clk 0:01:54.8]} 16... O-O
{[%clk 0:01:50.1]} 17. Bf4 {[%clk 0:01:49.7]} 17... Qh5 {[%clk 0:01:43.9]} 18.
a5 {[%clk 0:01:32.8]} 18... Rfd8 {[%clk 0:00:59.2]} 19. Rfe1 {[%clk 0:01:21.5]}
19... Ng4 {[%clk 0:00:42]} 20. Be4 {[%clk 0:01:13.4]} 20... Bxe4 {[%clk
0:00:25.3]} 21. Qxe4 {[%clk 0:01:12.2]} 21... Bxf2+ {[%clk 0:00:25.4]} 22. Kh1
{[%clk 0:01:10.2]} 22... Bxe1 {[%clk 0:00:25.5]} 23. Rxe1 {[%clk 0:01:11]} 23...
Nf6 {[%clk 0:00:25.1]} 24. Qxb4 {[%clk 0:01:09.3]} 24... Qb5 {[%clk 0:00:24.4]}
25. Qa3 {[%clk 0:01:05.6]} 25... Nd5 {[%clk 0:00:22.6]} 26. Be5 {[%clk
0:00:58.9]} 26... Qb4 {[%clk 0:00:20.6]} 27. Qa1 {[%clk 0:00:55.4]} 27... Rdc8
{[%clk 0:00:20]} 28. c3 {[%clk 0:00:55.4]} 28... Qb5 {[%clk 0:00:18.6]} 29. Nd4
{[%clk 0:00:53.8]} 29... Qd3 {[%clk 0:00:17.9]} 30. Qc1 {[%clk 0:00:48.2]} 30...
Ra7 {[%clk 0:00:17.1]} 31. Rf1 {[%clk 0:00:33.1]} 31... Rb7 {[%clk 0:00:16.4]}
32. Rf3 {[%clk 0:00:30.9]} 32... f6 {[%clk 0:00:11.8]} 33. Rxd3 {[%clk
0:00:30.5]} 33... fxe5 {[%clk 0:00:10.8]} 34. Nxe6 {[%clk 0:00:28.9]} 1-0

[Event "*** Titled Tuesday Blitz"]
[Site "Chess.com"]
[Date "2021.04.27"]
[Round "9"]
[White "Novoselski"]
[Black "827883"]
[Result "1-0"]
[WhiteElo "2397"]
[BlackElo "2273"]
[TimeControl "180+1"]
[EndTime "11:43:01 PDT"]
[Termination "Novoselski won by checkmate"]

1. e4 {[%clk 0:03:00.9]} 1... e5 {[%clk 0:02:59.8]} 2. Nf3 {[%clk 0:03:00.5]}
2... Nc6 {[%clk 0:03:00.3]} 3. Nc3 {[%clk 0:02:59.6]} 3... Nf6 {[%clk
0:03:00.7]} 4. d4 {[%clk 0:02:59.5]} 4... exd4 {[%clk 0:03:00.8]} 5. Nd5 {[%clk
0:02:59.5]} 5... Bc5 {[%clk 0:02:53.1]} 6. Bg5 {[%clk 0:02:52.4]} 6... Be7
{[%clk 0:02:47.2]} 7. Bxf6 {[%clk 0:02:29.2]} 7... Bxf6 {[%clk 0:02:47.1]} 8.
Bd3 {[%clk 0:02:21.8]} 8... d6 {[%clk 0:02:44.3]} 9. O-O {[%clk 0:02:20]} 9...
O-O {[%clk 0:02:44.4]} 10. h3 {[%clk 0:02:18.4]} 10... h6 {[%clk 0:02:37.9]} 11.
Bb5 {[%clk 0:02:10.3]} 11... a6 {[%clk 0:02:34.4]} 12. Bxc6 {[%clk 0:02:09]}
12... bxc6 {[%clk 0:02:34.7]} 13. Nxf6+ {[%clk 0:02:09.9]} 13... Qxf6 {[%clk
0:02:35.6]} 14. Qxd4 {[%clk 0:02:09.4]} 14... Qxd4 {[%clk 0:02:34.8]} 15. Nxd4
{[%clk 0:02:10.3]} 15... c5 {[%clk 0:02:35.4]} 16. Ne2 {[%clk 0:02:04.9]} 16...
Rb8 {[%clk 0:02:35]} 17. b3 {[%clk 0:02:04.1]} 17... c4 {[%clk 0:02:28.7]} 18.
Nc3 {[%clk 0:01:54.3]} 18... a5 {[%clk 0:02:26.6]} 19. f3 {[%clk 0:01:51.9]}
19... Ba6 {[%clk 0:02:26.9]} 20. Rfd1 {[%clk 0:01:49]} 20... f5 {[%clk
0:02:20.6]} 21. exf5 {[%clk 0:01:43.3]} 21... Rxf5 {[%clk 0:02:21.5]} 22. Rd5
{[%clk 0:01:41.5]} 22... Rxd5 {[%clk 0:02:14.8]} 23. Nxd5 {[%clk 0:01:42.4]}
23... c5 {[%clk 0:01:46.9]} 24. Re1 {[%clk 0:01:37.5]} 24... cxb3 {[%clk
0:01:45.5]} 25. axb3 {[%clk 0:01:36.4]} 25... c4 {[%clk 0:01:44.5]} 26. Nc7
{[%clk 0:01:33.2]} 26... Bb5 {[%clk 0:01:36.6]} 27. Ra1 {[%clk 0:01:20.5]} 27...
cxb3 {[%clk 0:01:33.7]} 28. cxb3 {[%clk 0:01:19.8]} 28... Bc6 {[%clk 0:01:32.9]}
29. Rxa5 {[%clk 0:01:14.8]} 29... Rxb3 {[%clk 0:01:32.2]} 30. Ra6 {[%clk
0:01:13.1]} 30... Rc3 {[%clk 0:01:31.1]} 31. Ra7 {[%clk 0:01:10.5]} 31... Bd7
{[%clk 0:01:22.7]} 32. Nd5 {[%clk 0:01:07.3]} 32... Rc1+ {[%clk 0:01:19]} 33.
Kh2 {[%clk 0:01:07.2]} 33... Be6 {[%clk 0:01:09.7]} 34. Ne7+ {[%clk 0:00:56.8]}
34... Kh7 {[%clk 0:01:10.1]} 35. f4 {[%clk 0:00:52.3]} 35... Rc5 {[%clk
0:01:08.6]} 36. g4 {[%clk 0:00:50.3]} 36... Bc4 {[%clk 0:01:06.7]} 37. Nf5
{[%clk 0:00:46.7]} 37... Bd3 {[%clk 0:01:02.7]} 38. Nxg7 {[%clk 0:00:43.3]}
38... Rc2+ {[%clk 0:01:00.4]} 39. Kg3 {[%clk 0:00:42.3]} 39... Kg6 {[%clk
0:01:01.3]} 40. Ne6 {[%clk 0:00:37.7]} 40... Bc4 {[%clk 0:01:00.5]} 41. Nd4
{[%clk 0:00:33.4]} 41... Rd2 {[%clk 0:00:58]} 42. Nf5 {[%clk 0:00:32.5]} 42...
h5 {[%clk 0:00:55]} 43. Rd7 {[%clk 0:00:29.1]} 43... d5 {[%clk 0:00:54.2]} 44.
Rd6+ {[%clk 0:00:28.1]} 44... Kh7 {[%clk 0:00:53.8]} 45. g5 {[%clk 0:00:26.7]}
45... Rd3+ {[%clk 0:00:47.4]} 46. Kh4 {[%clk 0:00:25.8]} 46... Rf3 {[%clk
0:00:48.1]} 47. g6+ {[%clk 0:00:25.6]} 47... Kg8 {[%clk 0:00:47.7]} 48. Rd8#
{[%clk 0:00:25.4]} 1-0